fUST/lending_fUST_20250822
["ID","MTS","AMOUNT","RATE_DAILY","PERIOD"]
[380584945,1755811840794,-902.21,0.00022465,3]
[380584946,1755811840804,-718.95,0.00022465,3]
[380584947,1755811840813,-480.0,0.00022465,3]
[380584948,1755811840822,-480.0,0.00022465,3]
[380584949,1755811840831,-480.0,0.00022465,3]
[380584950,1755811840841,-642.04,0.00022465,3]
[380584951,1755811840850,-480.0,0.00022465,3]
[380584952,1755811840860,-649.26,0.00022465,3]
[380584953,1755811840869,-480.0,0.00022465,3]
[380584954,1755811840878,-1012.39295752,0.000225,2]
[380584955,1755811840889,-2000.0,0.00022516,2]
[380584956,1755811840902,-500.0,0.0002255,2]
[380584957,1755811840912,-500.0,0.0002255,2]
[380584958,1755811840922,-500.0,0.0002255,2]
[380584959,1755811840933,-500.0,0.0002255,2]
[380584960,1755811840943,-500.0,0.0002255,2]
[380584961,1755811840953,-500.0,0.0002255,2]
[380584962,1755811840962,-260.0,0.00022552,2]
[380584963,1755811840971,-500.0,0.00022567,2]
[380584964,1755811840982,-500.0,0.00022618,2]
[380584965,1755811840991,-168.0139822,0.00022681,2]
[380584966,1755811841001,-610.27141104,0.00022681,2]
[380584967,1755811841010,-500.0,0.00022682,2]
[380584968,1755811841019,-500.0,0.00022682,2]
[380584969,1755811841029,-500.0,0.00022682,2]
[380584970,1755811841038,-500.0,0.00022682,2]
[380584971,1755811841047,-505.64626977,0.00022682,2]
[380584972,1755811841056,-500.0,0.00022682,2]
[380584973,1755811841065,-6725.06227727,0.00022706,2]
[380584974,1755811841074,-800.0,0.00022708,2]
[380584975,1755811841084,-973.0,0.00022722,2]
[380584976,1755811841094,-2154.0,0.00022722,2]
[380584977,1755811841105,-637.0,0.00022722,2]
[380584978,1755811841115,-409.838,0.00022722,2]
[380584979,1755811841124,-689.37,0.00022737,3]
[380584980,1755811841133,-480.0,0.00022738,3]
[380584981,1755811841145,-480.0,0.00022738,3]
[380584982,1755811841155,-480.0,0.00022739,3]
[380584983,1755811841164,-1533.13,0.00022739,3]
[380584984,1755811841174,-2386.2,0.00022739,3]
[380584985,1755811841184,-1175.76,0.00022739,3]
[380584986,1755811841192,-480.0,0.00022739,3]
[380584987,1755811841202,-783.56,0.00022739,3]
[380584988,1755811841211,-603.33,0.00022739,3]
[380584989,1755811841220,-699.65,0.00022739,3]
[380584990,1755811841229,-902.21,0.00022739,3]
[380584991,1755811841238,-718.95,0.00022739,3]
[380584992,1755811841248,-480.0,0.00022739,3]
[380584993,1755811841257,-480.0,0.00022739,3]
[380584994,1755811841266,-480.0,0.00022739,3]
[380584995,1755811841275,-642.04,0.00022739,3]
[380584996,1755811841284,-480.0,0.00022739,3]
[380584997,1755811841293,-649.26,0.00022739,3]
[380584998,1755811841303,-330.73046932,0.00022739,3]
[380584999,1755811841312,-528.88070896,0.0002274,3]
[380585000,1755811841321,-587.0,0.00022776,2]
[380585001,1755811841331,-500.0,0.00022794,2]
[380585002,1755811841340,-1000.0,0.00022794,2]
[380585003,1755811841349,-1000.0,0.00022794,2]
[380585004,1755811841359,-1088.44873183,0.00022799,2]
[380585005,1755811841368,-1000.0,0.00022812,2]
[380585006,1755811841377,-1093.77448701,0.00022812,2]
[380585007,1755811841387,-151.0,0.000229,7]
[380585008,1755811841396,-306.23479692,0.0002293,2]
[380585009,1755811841406,-1000.0,0.0002293,2]
[380585010,1755811841415,-500.0,0.0002293,2]
[380585011,1755811841425,-500.0,0.0002293,2]
[380585012,1755811841434,-2351.0,0.00022997,2]
[380585013,1755811841443,-160.0,0.00023,2]
[380585014,1755811841452,-160.0,0.00023,3]
[380585015,1755811841462,-844.19128999,0.00023,3]
[380585016,1755811841471,-216.95272161,0.00023,3]
[380585017,1755811841481,-232.28399145,0.00023,3]
[380585018,1755811841493,-689.37,0.00023011,3]
[380585019,1755811841513,-399.91229057,0.00023012,3]
[380585020,1755811841526,-200.01783574,0.00023012,3]
[380585021,1755811841536,-480.0,0.00023013,3]
[380585022,1755811841545,-1533.13,0.00023013,3]
[380585023,1755811841554,-2386.2,0.00023013,3]
[380585024,1755811841566,-1175.76,0.00023013,3]
[380585025,1755811841575,-480.0,0.00023013,3]
[380585026,1755811841585,-783.56,0.00023013,3]
[380585027,1755811841594,-603.33,0.00023013,3]
[380585028,1755811841603,-699.65,0.00023013,3]
[380585029,1755811841613,-902.21,0.00023013,3]
[380585030,1755811841622,-718.95,0.00023013,3]
[380585031,1755811841631,-480.0,0.00023013,3]
[380585032,1755811841642,-480.0,0.00023013,3]
[380585033,1755811841651,-480.0,0.00023013,3]
[380585034,1755811841661,-642.04,0.00023013,3]
[380585035,1755811841670,-480.0,0.00023013,3]
[380585036,1755811841679,-649.26,0.00023013,3]
[380585037,1755811841689,-165.0,0.00023014,7]
[380585038,1755811841698,-2500.0,0.00023064,2]
[380585039,1755811841707,-551.83599481,0.00023098,2]
[380585040,1755811841716,-271.79791669,0.00023098,2]
[380585041,1755811841725,-500.0,0.00023098,2]
[380585042,1755811841735,-407.73,0.000231,7]
[380585043,1755811841745,-360.0,0.000231,2]
[380585044,1755811841754,-1076.47031468,0.00023166,2]
[380585045,1755811841763,-2276.2,0.000232,7]
[380585046,1755811841773,-4516.56729689,0.000232,7]
[380585047,1755811841786,-505.75395028,0.000232,7]
[380585056,1755811843674,-480.0,0.00019178,2]
[380585057,1755811843685,-480.0,0.00019178,2]
[380585058,1755811843696,-574.92,0.00019178,2]
[380585059,1755811843705,-480.0,0.00019452,2]
[380585060,1755811843715,-480.0,0.00019452,2]
[380585061,1755811843724,-381.03915146,0.00019726,2]
[380585062,1755811843733,-480.0,0.00019726,2]
[380585064,1755811843743,-480.0,0.0002,2]
[380585065,1755811843752,-114.04875283,0.000232,7]
[380585066,1755811843761,-376.00439007,0.000232,7]
[380585067,1755811843770,-160.0,0.000232,7]
[380585068,1755811843779,-528.88070896,0.000232,7]
[380585070,1755811843789,-2200.0,0.00023206,2]
[380585072,1755811843798,-500.0,0.0002323,2]
[380585074,1755811843807,-1003.6102621,0.0002323,2]
[380585076,1755811843816,-1000.0,0.0002323,2]
[380585077,1755811843825,-501.83718057,0.0002323,2]
[380585078,1755811843835,-689.37,0.00023285,3]
[380585079,1755811843844,-480.0,0.00023287,3]
[380585080,1755811843853,-2386.2,0.00023287,3]
[380585081,1755811843862,-1175.76,0.00023287,3]
[380585082,1755811843871,-783.56,0.00023287,3]
[380585083,1755811843881,-603.33,0.00023287,3]
[380585084,1755811843895,-699.65,0.00023287,3]
[380585085,1755811843904,-902.21,0.00023287,3]
[380585086,1755811843914,-718.95,0.00023287,3]
[380585087,1755811843923,-480.0,0.00023287,3]
[380585088,1755811843933,-190.00835394,0.00023287,3]
[380585089,1755811843942,-220.45176645,0.00023287,3]
[380585090,1755811843951,-642.04,0.00023287,3]
[380585091,1755811843959,-480.0,0.00023287,3]
[380585092,1755811843968,-649.26,0.00023287,3]
[380585093,1755811843977,-876.48468622,0.00023342,2]
[380585094,1755811843987,-1002.76678058,0.0002336,2]
[380585095,1755811843995,-187.23706097,0.00023397,2]
[380585096,1755811844005,-187.23706098,0.00023397,2]
[380585097,1755811844014,-151.0,0.00023398,2]
[380585098,1755811844024,-151.0,0.000234,5]
[380585099,1755811844033,-689.37,0.00023559,3]
[380585100,1755811844042,-200.0,0.00023561,2]
[380585101,1755811844051,-200.0,0.00023561,2]
[380585102,1755811844060,-200.0,0.00023561,2]
[380585103,1755811844069,-200.0,0.00023561,2]
[380585104,1755811844079,-200.0,0.00023561,2]
[380585105,1755811844088,-200.0,0.00023561,2]
[380585106,1755811844099,-200.0,0.00023561,2]
[380585107,1755811844108,-200.0,0.00023561,2]
[380585108,1755811844118,-200.0,0.00023561,2]
[380585109,1755811844127,-200.0,0.00023561,2]
[380585110,1755811844137,-332.12173829,0.00023561,2]
[380585111,1755811844147,-480.0,0.00023561,3]
[380585112,1755811844156,-2386.2,0.00023561,3]
[380585113,1755811844166,-1175.76,0.00023561,3]
[380585114,1755811844175,-783.56,0.00023561,3]
[380585115,1755811844185,-603.33,0.00023561,3]
[380585116,1755811844194,-699.65,0.00023561,3]
[380585117,1755811844203,-902.21,0.00023561,3]
[380585118,1755811844212,-718.95,0.00023561,3]
[380585119,1755811844220,-480.0,0.00023561,3]
[380585120,1755811844229,-642.04,0.00023561,3]
[380585121,1755811844236,-480.0,0.00023561,3]
[380585122,1755811844245,-649.26,0.00023561,3]
[380585123,1755811844255,-1131.32184527,0.00023612,2]
[380585124,1755811844265,-6725.06227727,0.00023642,2]
[380585125,1755811844274,-460.0,0.00023648,2]
[380585126,1755811844284,-1500.0,0.00023778,2]
[380585127,1755811844417,-1088.44873183,0.000238,2]
[380585128,1755811844428,-800.0,0.00023804,2]
[380585129,1755811844437,-689.37,0.00023833,3]
[380585130,1755811844447,-441.6202594,0.00023835,3]
[380585131,1755811844456,-2386.2,0.00023835,3]
[380585132,1755811844465,-1175.76,0.00023835,3]
[380585133,1755811844475,-783.56,0.00023835,3]
[380585134,1755811844484,-603.33,0.00023835,3]
[380585135,1755811844494,-699.65,0.00023835,3]
[380585136,1755811844503,-902.21,0.00023835,3]
[380585137,1755811844512,-15.60382901,0.00023835,3]
[380585143,1755811913488,928.0683129,0.00027397,120]
[380585148,1755812747123,-300.0,0.00019176,2]
[380585149,1755812747145,-1200.0,0.00019176,2]
[380585150,1755812747166,-46409.40080737,0.00019177,2]
[380585151,1755812747188,-500.0,0.00019177,2]
[380585152,1755812747211,-500.0,0.00019177,2]
[380585153,1755812747232,-500.0,0.00019177,2]
[380585154,1755812747256,-500.0,0.00019177,2]
[380585155,1755812747279,-500.0,0.00019177,2]
[380585156,1755812747306,-500.0,0.00019177,2]
[380585157,1755812747329,-500.0,0.00019177,2]
[380585158,1755812747351,-500.0,0.00019177,2]
[380585159,1755812747374,-500.0,0.00019177,2]
[380585160,1755812747398,-500.0,0.00019177,2]
[380585161,1755812747421,-500.0,0.00019177,2]
[380585162,1755812747446,-500.0,0.00019177,2]
[380585163,1755812747467,-500.0,0.00019177,2]
[380585164,1755812747492,-500.0,0.00019177,2]
[380585165,1755812747514,-500.0,0.00019177,2]
[380585166,1755812747537,-500.0,0.00019177,2]
[380585167,1755812747556,-201.7370455,0.00019177,2]
[380585168,1755812747576,-500.0,0.00019177,2]
[380585169,1755812747596,-500.0,0.00019177,2]
[380585170,1755812747619,-500.0,0.00019177,2]
[380585171,1755812747640,-367.69478321,0.00019177,2]
[380585172,1755812747663,-500.0,0.00019177,2]
[380585173,1755812747685,-500.0,0.00019177,2]
[380585174,1755812747705,-480.0,0.00019178,2]
[380585175,1755812747727,-480.0,0.00019178,2]
[380585176,1755812747747,-480.0,0.00019178,2]
[380585177,1755812747767,-480.0,0.00019178,2]
[380585178,1755812747787,-480.0,0.00019178,2]
[380585179,1755812747807,-480.0,0.00019178,2]
[380585180,1755812747827,-480.0,0.00019178,2]
[380585181,1755812747847,-480.0,0.00019178,2]
[380585182,1755812747868,-349.79128073,0.00019178,2]
[380585183,1755812969131,-300.0,0.00019177,2]
[380585184,1755812969295,-625.09,0.00019178,2]
[380585185,1755812969316,-486.45,0.00019178,2]
[380585186,1755812969336,-480.0,0.00019178,2]
[380585187,1755812969358,-490.79,0.00019178,2]
[380585188,1755812969379,-480.0,0.00019178,2]
[380585189,1755812969398,-480.0,0.00019178,2]
[380585190,1755812969418,-480.0,0.00019178,2]
[380585191,1755812969439,-480.0,0.00019178,2]
[380585192,1755812969461,-626.56,0.00019178,2]
[380585193,1755812969487,-480.0,0.00019178,2]
[380585194,1755812969506,-480.0,0.00019178,2]
[380585195,1755812969527,-480.0,0.00019178,2]
[380585196,1755812969546,-480.0,0.00019178,2]
[380585197,1755812969565,-480.0,0.00019178,2]
[380585198,1755812969585,-480.0,0.00019178,2]
[380585199,1755812969605,-480.0,0.00019178,2]
[380585200,1755812969625,-480.0,0.00019178,2]
[380585201,1755812969645,-480.0,0.00019178,2]
[380585202,1755812969664,-480.0,0.00019178,2]
[380585203,1755812969687,-480.0,0.00019178,2]
[380585204,1755812969711,-359.83510933,0.00019178,2]
[380585205,1755812972159,-120.16489067,0.00019178,2]
[380585206,1755812972181,-2226.4,0.00019178,2]
[380585207,1755812972202,-480.0,0.00019178,2]
[380585208,1755812972223,-480.0,0.00019178,2]
[380585209,1755812972243,-480.0,0.00019178,2]
[380585210,1755812972263,-480.0,0.00019178,2]
[380585211,1755812972284,-480.0,0.00019178,2]
[380585212,1755812972306,-480.0,0.00019178,2]
[380585213,1755812972329,-480.0,0.00019178,2]
[380585214,1755812972350,-483.8,0.00019178,2]
[380585215,1755812972369,-836.0,0.00019178,2]
[380585216,1755812972389,-500.0,0.00019178,2]
[380585217,1755812972409,-151.0,0.00019178,2]
[380585218,1755812972430,-1201.61,0.00019178,2]
[380585219,1755812972454,-480.0,0.00019178,2]
[380585220,1755812972474,-480.0,0.00019178,2]
[380585221,1755812972494,-500.0,0.00019178,2]
[380585222,1755812972514,-200.2887846,0.00019178,2]
[380585223,1755812972534,-264.62832098,0.00019178,2]
[380585224,1755812972554,-176.03762668,0.00019178,2]
[380585225,1755812972574,-151.0,0.00019178,2]
[380585226,1755812972594,-480.0,0.00019178,2]
[380585227,1755812972615,-480.0,0.00019178,2]
[380585228,1755812972635,-480.0,0.00019178,2]
[380585229,1755812972656,-479.80382133,0.00019178,2]
[380585240,1755813021257,391.0,0.00027397,120]
[380585264,1755813032638,-300.0,0.00019177,2]
[380585265,1755813032647,-1200.0,0.00019177,2]
[380585266,1755813032657,-0.19617867,0.00019178,2]
[380585267,1755813032666,-888.83,0.00019178,2]
[380585269,1755813032675,-480.0,0.00019178,2]
[380585270,1755813032684,-480.0,0.00019178,2]
[380585271,1755813032694,-797.82,0.00019178,2]
[380585272,1755813032703,-480.0,0.00019178,2]
[380585273,1755813032712,-778.75,0.00019178,2]
[380585274,1755813032721,-480.0,0.00019178,2]
[380585276,1755813032731,-1096.08,0.00019178,2]
[380585277,1755813032740,-480.0,0.00019178,2]
[380585278,1755813032750,-480.0,0.00019178,2]
[380585279,1755813032758,-521.04,0.00019178,2]
[380585280,1755813032767,-151.0,0.00019178,2]
[380585281,1755813032776,-151.0,0.00019178,2]
[380585282,1755813032785,-480.0,0.00019178,2]
[380585283,1755813032803,-500.0,0.00019178,2]
[380585284,1755813032812,-500.0,0.00019178,2]
[380585285,1755813032820,-962.72479293,0.00019178,2]
[380585430,1755813038691,-1380.19520707,0.00019178,2]
[380585431,1755813038701,-480.0,0.00019178,2]
[380585432,1755813038710,-151.0,0.00019178,2]
[380585433,1755813038720,-480.0,0.00019178,2]
[380585434,1755813038729,-480.0,0.00019178,2]
[380585435,1755813038738,-480.0,0.00019178,2]
[380585436,1755813038914,-480.0,0.00019178,2]
[380585437,1755813038924,-480.0,0.00019178,2]
[380585438,1755813038934,-480.0,0.00019178,2]
[380585439,1755813038944,-675.24,0.00019178,2]
[380585440,1755813038953,-480.0,0.00019178,2]
[380585441,1755813038962,-480.0,0.00019178,2]
[380585442,1755813038971,-480.0,0.00019178,2]
[380585443,1755813038980,-480.0,0.00019178,2]
[380585444,1755813038989,-480.0,0.00019178,2]
[380585445,1755813038999,-480.0,0.00019178,2]
[380585446,1755813039008,-480.0,0.00019178,2]
[380585447,1755813039017,-480.0,0.00019178,2]
[380585448,1755813039027,-480.0,0.00019178,2]
[380585449,1755813039036,-480.0,0.00019178,2]
[380585450,1755813039045,-2432.18,0.00019178,2]
[380585451,1755813039055,-480.0,0.00019178,2]
[380585452,1755813039064,-1490.05,0.00019178,2]
[380585453,1755813039073,-480.0,0.00019178,2]
[380585454,1755813039082,-480.0,0.00019178,2]
[380585455,1755813039091,-480.0,0.00019178,2]
[380585456,1755813039101,-836.0,0.00019452,2]
[380585457,1755813039112,-500.0,0.00019452,2]
[380585458,1755813039121,-151.0,0.00019452,2]
[380585459,1755813039130,-500.0,0.00019452,2]
[380585460,1755813039139,-151.0,0.00019452,2]
[380585461,1755813039148,-151.0,0.00019452,2]
[380585462,1755813039158,-500.0,0.00019452,2]
[380585463,1755813039167,-500.0,0.00019452,2]
[380585464,1755813039176,-151.0,0.00019452,2]
[380585465,1755813039186,-502.39,0.00019452,2]
[380585466,1755813039195,-480.0,0.00019452,2]
[380585467,1755813039204,-151.0,0.00019452,2]
[380585468,1755813039214,-151.0,0.00019452,2]
[380585469,1755813039223,-151.0,0.00019452,2]
[380585470,1755813039233,-480.0,0.00019452,2]
[380585471,1755813039242,-480.0,0.00019452,2]
[380585472,1755813039252,-575.71,0.00019452,2]
[380585473,1755813039262,-514.26887099,0.00019452,2]
[380585474,1755813039271,-480.0,0.00019452,2]
[380585475,1755813039280,-480.0,0.00019452,2]
[380585476,1755813039289,-480.0,0.00019452,2]
[380585477,1755813039299,-480.0,0.00019452,2]
[380585478,1755813039307,-480.0,0.00019452,2]
[380585479,1755813039316,-483.8,0.00019452,2]
[380585480,1755813039326,-1201.61,0.00019452,2]
[380585481,1755813039337,-480.0,0.00019452,2]
[380585482,1755813039347,-480.0,0.00019452,2]
[380585483,1755813039356,-480.0,0.00019452,2]
[380585484,1755813039366,-480.0,0.00019452,2]
[380585485,1755813039375,-888.83,0.00019452,2]
[380585486,1755813039384,-480.0,0.00019452,2]
[380585487,1755813039394,-797.82,0.00019452,2]
[380585488,1755813039403,-480.0,0.00019452,2]
[380585489,1755813039413,-778.75,0.00019452,2]
[380585490,1755813039424,-480.0,0.00019452,2]
[380585491,1755813039433,-1096.08,0.00019452,2]
[380585492,1755813039444,-480.0,0.00019452,2]
[380585493,1755813039455,-480.0,0.00019452,2]
[380585494,1755813039467,-521.04,0.00019452,2]
[380585495,1755813039475,-480.0,0.00019452,2]
[380585496,1755813039484,-2342.92,0.00019452,2]
[380585497,1755813039494,-480.0,0.00019452,2]
[380585498,1755813039504,-480.0,0.00019452,2]
[380585499,1755813039513,-480.0,0.00019452,2]
[380585500,1755813039522,-480.0,0.00019452,2]
[380585501,1755813039532,-480.0,0.00019452,2]
[380585502,1755813039542,-480.0,0.00019452,2]
[380585503,1755813039552,-480.0,0.00019452,2]
[380585504,1755813039561,-675.24,0.00019452,2]
[380585505,1755813039570,-480.0,0.00019452,2]
[380585506,1755813039579,-542.51,0.00019452,2]
[380585507,1755813039588,-480.0,0.00019452,2]
[380585508,1755813039597,-480.0,0.00019452,2]
[380585509,1755813039606,-480.0,0.00019452,2]
[380585510,1755813039615,-480.0,0.00019452,2]
[380585511,1755813039625,-480.0,0.00019452,2]
[380585512,1755813039633,-480.0,0.00019452,2]
[380585513,1755813039643,-480.0,0.00019452,2]
[380585514,1755813039652,-2432.18,0.00019452,2]
[380585515,1755813039661,-480.0,0.00019452,2]
[380585516,1755813039670,-1490.05,0.00019452,2]
[380585517,1755813039679,-151.0,0.00019452,2]
[380585518,1755813039688,-151.0,0.00019452,2]
[380585519,1755813039697,-151.0,0.00019452,2]
[380585520,1755813039707,-151.0,0.00019452,2]
[380585521,1755813039716,-480.0,0.00019452,2]
[380585522,1755813039725,-151.0,0.00019452,2]
[380585523,1755813039734,-151.0,0.00019452,2]
[380585524,1755813039743,-480.0,0.00019452,2]
[380585525,1755813039752,-651.96608702,0.00019725,2]
[380585526,1755813039761,-577.97078283,0.00019725,2]
[380585527,1755813039770,-836.0,0.00019726,2]
[380585528,1755813039780,-500.0,0.00019726,2]
[380585529,1755813039790,-151.0,0.00019726,2]
[380585530,1755813039800,-500.0,0.00019726,2]
[380585531,1755813039809,-151.0,0.00019726,2]
[380585532,1755813039819,-198.0,0.00019726,2]
[380585533,1755813039828,-500.0,0.00019726,2]
[380585534,1755813039838,-500.0,0.00019726,2]
[380585535,1755813039847,-151.0,0.00019726,2]
[380585536,1755813039857,-151.0,0.00019726,2]
[380585537,1755813039866,-151.0,0.00019726,2]
[380585538,1755813039875,-151.0,0.00019726,2]
[380585539,1755813039885,-194.58011813,0.00019726,2]
[380585540,1755813039895,-151.0,0.00019726,2]
[380585541,1755813039904,-181.313345,0.00019726,2]
[380585542,1755813039913,-151.0,0.00019726,2]
[380585543,1755813039924,-151.0,0.00019726,2]
[380585544,1755813039934,-480.0,0.00019726,2]
[380585545,1755813039944,-480.0,0.00019726,2]
[380585546,1755813039954,-480.0,0.00019726,2]
[380585547,1755813039964,-493.32,0.00019726,2]
[380585548,1755813039974,-480.0,0.00019726,2]
[380585549,1755813039984,-480.0,0.00019726,2]
[380585550,1755813039994,-480.0,0.00019726,2]
[380585551,1755813040003,-480.0,0.00019726,2]
[380585552,1755813040013,-483.8,0.00019726,2]
[380585553,1755813040023,-1201.61,0.00019726,2]
[380585554,1755813040033,-480.0,0.00019726,2]
[380585555,1755813040043,-480.0,0.00019726,2]
[380585556,1755813040053,-480.0,0.00019726,2]
[380585557,1755813040063,-480.0,0.00019726,2]
[380585558,1755813040073,-888.83,0.00019726,2]
[380585559,1755813040083,-480.0,0.00019726,2]
[380585560,1755813040092,-797.82,0.00019726,2]
[380585561,1755813040104,-480.0,0.00019726,2]
[380585562,1755813040115,-778.75,0.00019726,2]
[380585563,1755813040124,-480.0,0.00019726,2]
[380585564,1755813040136,-1096.08,0.00019726,2]
[380585565,1755813040146,-480.0,0.00019726,2]
[380585566,1755813040159,-480.0,0.00019726,2]
[380585568,1755813040169,-521.04,0.00019726,2]
[380585570,1755813040178,-480.0,0.00019726,2]
[380585571,1755813040187,-2342.92,0.00019726,2]
[380585572,1755813040196,-480.0,0.00019726,2]
[380585573,1755813040206,-480.0,0.00019726,2]
[380585574,1755813040215,-480.0,0.00019726,2]
[380585575,1755813040225,-480.0,0.00019726,2]
[380585576,1755813040235,-480.0,0.00019726,2]
[380585577,1755813040244,-480.0,0.00019726,2]
[380585578,1755813040254,-480.0,0.00019726,2]
[380585579,1755813040263,-675.24,0.00019726,2]
[380585580,1755813040273,-480.0,0.00019726,2]
[380585581,1755813040282,-480.0,0.00019726,2]
[380585582,1755813040292,-480.0,0.00019726,2]
[380585583,1755813040301,-480.0,0.00019726,2]
[380585584,1755813040311,-480.0,0.00019726,2]
[380585585,1755813040320,-480.0,0.00019726,2]
[380585586,1755813040329,-480.0,0.00019726,2]
[380585587,1755813040338,-480.0,0.00019726,2]
[380585588,1755813040348,-2432.18,0.00019726,2]
[380585590,1755813040357,-480.0,0.00019726,2]
[380585592,1755813040366,-1490.05,0.00019726,2]
[380585593,1755813040375,-480.0,0.00019726,2]
[380585595,1755813040384,-480.0,0.00019726,2]
[380585597,1755813040394,-480.0,0.00019899,2]
[380585598,1755813040404,-480.0,0.00019899,2]
[380585599,1755813040414,-480.0,0.00019899,2]
[380585600,1755813040424,-480.0,0.00019899,2]
[380585601,1755813040433,-170.93,0.00019899,2]
[380585602,1755813040442,-480.0,0.00019899,2]
[380585603,1755813040453,-480.0,0.00019899,2]
[380585604,1755813040470,-480.0,0.00019899,2]
[380585605,1755813040480,-480.0,0.00019899,2]
[380585606,1755813040489,-480.0,0.00019899,2]
[380585607,1755813040500,-779.16,0.00019899,2]
[380585608,1755813040510,-798.97,0.00019899,2]
[380585609,1755813040519,-529.97,0.00019899,2]
[380585610,1755813040529,-6779.7540256,0.000199,2]
[380585611,1755813040540,-836.0,0.0002,2]
[380585612,1755813040550,-500.0,0.0002,2]
[380585613,1755813040559,-198.0,0.0002,2]
[380585614,1755813040568,-500.0,0.0002,2]
[380585616,1755813040578,-210.90349589,0.0002,2]
[380585618,1755813040587,-395.58033851,0.0002,2]
[380585619,1755813040595,-500.0,0.0002,2]
[380585620,1755813040605,-198.0,0.0002,2]
[380585621,1755813040614,-198.99807432,0.0002,2]
[380585622,1755813040623,-151.0,0.0002,2]
[380585625,1755813040634,-151.0,0.0002,2]
[380585627,1755813040643,-151.58718127,0.0002,2]
[380585628,1755813040652,-151.0,0.0002,2]
[380585629,1755813040661,-151.0,0.0002,2]
[380585630,1755813040670,-190.89222303,0.0002,2]
[380585631,1755813040679,-500.0,0.0002,2]
[380585632,1755813040689,-151.0,0.0002,2]
[380585633,1755813040699,-500.0,0.0002,2]
[380585634,1755813040708,-480.0,0.0002,2]
[380585635,1755813040718,-283.78,0.0002,2]
[380585636,1755813040727,-480.0,0.0002,2]
[380585637,1755813040737,-480.0,0.0002,2]
[380585638,1755813040747,-480.0,0.0002,2]
[380585639,1755813040756,-480.0,0.0002,2]
[380585640,1755813040765,-483.8,0.0002,2]
[380585641,1755813040775,-1201.61,0.0002,2]
[380585642,1755813040784,-480.0,0.0002,2]
[380585643,1755813040794,-480.0,0.0002,2]
[380585644,1755813040803,-480.0,0.0002,2]
[380585645,1755813040812,-888.83,0.0002,2]
[380585646,1755813040822,-480.0,0.0002,2]
[380585647,1755813040831,-797.82,0.0002,2]
[380585648,1755813040841,-480.0,0.0002,2]
[380585649,1755813040850,-778.75,0.0002,2]
[380585650,1755813040860,-480.0,0.0002,2]
[380585651,1755813040870,-1096.08,0.0002,2]
[380585652,1755813040879,-480.0,0.0002,2]
[380585653,1755813040888,-480.0,0.0002,2]
[380585654,1755813040897,-521.04,0.0002,2]
[380585655,1755813040907,-480.0,0.0002,2]
[380585656,1755813040916,-2342.92,0.0002,2]